[Event "2nd Serbia Open Masters 2022"]
[Site "Novi Sad"]
[Date "2022.07.02"]
[Round "5.2"]
[White "Aditya Mittal"]
[Black "Ivic, Velimir"]
[Result "1/2-1/2"]
[ECO "E73"]
[WhiteElo "2490"]
[BlackElo "2623"]
[Annotator "TA"]
[PlyCount "110"]
[EventDate "2022.06.28"]
[EventType "swiss"]
[EventCountry "SRB"]
[SourceTitle "playchess.com"]
[Source "ChessBase"]
[SourceQuality "1"]
[TimeControl "40/5400+30:900+30"]

{[%evp 10,110,39,39,45,25,50,56,61,23,31,30,25,31,37,33,37,32,26,24,26,35,29,25,64,21,21,23,26,0,0,0,0,0,0,0,0,0,0,0,0,0,0,0,0,0,0,0,0,0,0,0,0,0,103,101,97,102,99,107,103,99,105,106,118,116,109,116,307,311,668,660,539,0,0,0,0,0,0,0,0,-349,-350,-331,-347,-349,-359,-343,-220,-224,-220,-208,0,0,0,0,0,0,0,0,0,0,0]} 1. d4 {[%emt 0:00:05]} Nf6 {[%emt 0:00:13]} 2. c4 {[%emt 0:00:03]} g6 {[%emt 0:00:11]} 3. Nc3 {[%emt 0:00:04]} Bg7 {[%emt 0:00:12]} 4. e4 {[%emt 0:00:05]} d6 {[%emt 0:00:04]} 5. Be2 {[%emt 0:00:03]} O-O {[%emt 0:00:24]} 6. Be3 {[%emt 0:00:01]} a5 {[%emt 0:00:35] E73: King's Indian: Averbakh Variation without 6...c5.} 7. Nf3 {[%emt 0:10:47][%cal Bg1f3,Bf3d4,Bd4b5][%mdl 32]} Ng4 {[%emt 0:00:17] [#]} 8. Bg5 $146 {[%emt 0:00:34]} ({Predecessor:} 8. Bd2 c5 9. dxc5 dxc5 10. Bf4 Qxd1+ 11. Rxd1 Bxc3+ 12. bxc3 Nc6 13. h3 Nf6 14. Nd2 e5 {1-0 (40) Van Nierop,A (1857)-Koolsbergen,N (2012) IECC email 2003}) 8... h6 {[%emt 0:00:15] White is slightly better.} 9. Bf4 {[%emt 0:06:46]} e5 {[%emt 0:02:04]} 10. dxe5 {[%emt 0:00:50]} Nxe5 {[%emt 0:05:06]} 11. Qd2 {[%emt 0:02:06]} Kh7 {[%emt 0:01:20]} 12. Nd4 {[%emt 0:09:41]} Nbc6 {[%emt 0:02:44] Strongly threatening ...Nxd4.} 13. Ndb5 {[%emt 0:03:38]} f5 {[%emt 0:10:28]} 14. exf5 {[%emt 0:02:43]} Bxf5 {[%emt 0:01:49][%cal Oe5d3]} 15. O-O {[%emt 0:04:07]} Nb4 {[%emt 0:04:34]} 16. Nd4 {[%emt 0:03:42]} Bd7 {[%emt 0:11:50]} 17. a3 {[%emt 0:05:02]} Na6 {[%emt 0:02:54]} 18. Rad1 {[%emt 0:01:26]} a4 {[%emt 0:03:43]} 19. h3 {[%emt 0:04:43]} Nc5 {[%emt 0:03:45]} 20. Be3 {[%emt 0:00:09]} Qh4 {[%emt 0:13:52]} 21. f4 {[%emt 0:06:24]} Qg3 {[%emt 0:00:56][%cal Od7h3]} 22. Kh1 {[%emt 0:13:43]} Bxh3 {[%emt 0:06:22]} 23. gxh3 {[%emt 0:01:09]} Qxh3+ {[%emt 0:00:13]} 24. Kg1 {[%emt 0:00:01]} Qg3+ {[%emt 0:01:16]} 25. Kh1 {[%emt 0:00:01]} Qh3+ {[%emt 0:00:06]} 26. Kg1 {[%emt 0:00:03]} Rae8 {[%emt 0:07:45][%cal Oe5c4] And now ...Nxc4! would win.} 27. fxe5 {[%emt 0:07:27]} Qg3+ {[%emt 0:00:07]} 28. Kh1 {[%emt 0:00:01]} Qh3+ {[%emt 0:00:06]} 29. Kg1 {[%emt 0:00:02] Bf3 is the strong threat.} Qg3+ {[%emt 0:05:07]} 30. Kh1 {[%emt 0:00:05]} Bxe5 {[%emt 0:01:47][%csl Ge5][%cal Rg3h2]} 31. Bf3 {[%emt 0:02:54] Threatens to win with Qg2.} Rf4 {[%emt 0:09:01]} 32. Qg2 $1 $16 {[%emt 0:10:36]} (32. Bxf4 $6 Bxf4 33. Qc2 Qh3+ 34. Kg1 Be3+ 35. Rf2 Bxd4 $11) 32... Qh4+ {[%emt 0:02:03]} (32... Rh4+ $2 33. Kg1 $18) 33. Kg1 {[%emt 0:00:01]} Bxd4 {[%emt 0:04:21]} 34. Rxd4 {[%emt 0:06:12] Dancing on a razor blade.} Rxd4 {[%emt 0:00:02]} 35. Bf2 $36 {[%emt 0:00:09][%mdl 2048] White is on the roll. This bishop pair is nice.} (35. Bxd4 Qxd4+ 36. Qf2 Qxf2+ 37. Kxf2 Kg7 $14) 35... Qf6 {[%emt 0:01:08]} 36. Nd5 {[%emt 0:00:15]} Qg7 {[%emt 0:00:30] White must now prevent ...c6.} 37. Bxd4 {[%emt 0:01:10]} Qxd4+ {[%emt 0:00:01]} 38. Qf2 {[%emt 0:00:12]} Qe5 {[%emt 0:01:11]} (38... Qxf2+ $16 39. Kxf2 Rc8) 39. Bg2 $18 {[%emt 0:01:17]} (39. Nxc7 Nd3 40. Qd2 Qd4+ 41. Kh2 (41. Kh1 Re1 $11) 41... Qh4+ 42. Kg1 Qd4+ 43. Kh2 (43. Kh1 Re1 $11) 43... Qh4+ 44. Kg1 Qd4+ $11) 39... Nd3 $2 {[%emt 0:01:00]} (39... Kh8 40. Nxc7 Nd3 41. Qf6+ Qxf6 42. Rxf6 Re1+ 43. Kh2 Nxb2 44. Rxg6 (44. Bxb7 Re7 $14) 44... Nxc4 45. Rxh6+ (45. Bxb7 Re7 $15) 45... Kg7) 40. Qf7+ {[%emt 0:00:00]} Kh8 {[%emt 0:00:00]} 41. Qxg6 $2 {[%emt 0:06:56]} (41. Rf3 $18 Qd4+ 42. Re3 $1 {[%mdl 512]} Rxe3 43. Qf8+ Kh7 44. Nf6+ Qxf6 45. Qxf6) 41... Qd4+ $11 {[%emt 0:16:38]} 42. Kh2 {[%emt 0:00:02]} Qh4+ {[%emt 0:00:00]} 43. Kg1 $1 {[%emt 0:01:02]} Qd4+ {[%emt 0:00:00]} 44. Kh2 {[%emt 0:00:01]} Qh4+ {[%emt 0:00:00]} 45. Bh3 $2 {[%emt 0:05:23][%mdl 8192]} (45. Kg1 $1 $11 {and White is okay.} Qd4+) 45... Re2+ $19 {[%emt 0:00:00]} 46. Kg1 {[%emt 0:00:01][%cal Rf1f8]} Nf2 $1 {[%emt 0:00:00]} 47. Nf4 {[%emt 0:04:56]} (47. Bg2 $2 Qh1+ $3 {[%mdl 512]} 48. Bxh1 Nh3#) 47... Qxf4 {[%emt 0:00:00]} 48. Bg2 {[%emt 0:00:06]} (48. Bf5 $2 {[#]} Nh3+ $1 {[%mdl 512]} 49. Bxh3 Qh2#) 48... c6 {[%emt 0:00:03]} (48... Rxb2 49. Re1 (49. Qe8+ Kh7 $11) 49... Nh3+ 50. Kh1 Nf2+ 51. Kg1 Nh3+ 52. Kh1 Nf2+ 53. Kg1 $11) (48... Nh3+ $2 49. Kh1 Nf2+ 50. Kg1 $19) 49. Qh5 {[%emt 0:00:01]} Qe3 {[%emt 0:00:14] ( -> ...Ne4+)} (49... Rxb2 50. Qe8+ Kh7 51. Qe7+ Kh8 52. Qe8+ Kh7 53. Qe7+ Kh8 54. Qe8+ $11) 50. Qg6 {[%emt 0:01:03] aiming for Qf6+.} Qf4 {[%emt 0:02:36] Prevents Qf6+.} (50... Ne4+ $19 51. Kh2 Rf2 52. Rxf2 (52. Qe8+ $2 Kg7 $19) 52... Nxf2) 51. Qh5 $11 {[%emt 0:00:01] The position is equal.} Re5 {[%emt 0:01:22]} 52. Qg6 {[%emt 0:00:19]} Nh3+ {[%emt 0:00:11]} 53. Kh1 {[%emt 0:00:11]} Nf2+ {[%emt 0:00:50]} 54. Kg1 {[%emt 0:00:00]} Nh3+ {[%emt 0:00:42]} 55. Kh1 {[%emt 0:00:02]} Nf2+ {[%emt 0:00:27] Whites escaped into a draw.  Weighted Error Value: White=0.26 (precise) /Black=0.28 (precise)} 1/2-1/2

[Event "2nd Serbia Open Masters 2022"]
[Site "Novi Sad"]
[Date "2022.07.02"]
[Round "5.3"]
[White "Ioannidis, Evgenios"]
[Black "Jumabayev, Rinat"]
[Result "1-0"]
[ECO "E73"]
[WhiteElo "2459"]
[BlackElo "2628"]
[Annotator "TA"]
[PlyCount "97"]
[EventDate "2022.06.28"]
[EventType "swiss"]
[EventCountry "SRB"]
[SourceTitle "playchess.com"]
[Source "ChessBase"]
[SourceQuality "1"]
[TimeControl "40/5400+30:900+30"]

{[%evp 13,97,35,31,18,40,26,29,26,34,24,62,0,6,-7,-8,-13,-25,-8,0,0,0,0,0,-5,-5,-5,-5,-6,-14,-8,0,0,0,0,0,0,0,0,16,7,13,16,57,12,16,0,35,35,35,32,97,95,83,83,102,85,114,114,114,114,114,136,197,192,213,194,192,187,395,394,519,483,567,481,567,446,410,383,383,372,358,343,714,709,697,680]} 1. d4 {[%emt 0:00:08]} Nf6 {[%emt 0:00:05]} 2. c4 {[%emt 0:00:17]} g6 {[%emt 0:00:05]} 3. Nc3 {[%emt 0:00:18]} Bg7 {[%emt 0:00:05]} 4. e4 {[%emt 0:00:43]} d6 {[%emt 0:00:06]} 5. Be2 {[%emt 0:00:42]} O-O {[%emt 0:00:07]} 6. h4 {[%emt 0:02:24]} c5 {[%emt 0:12:18]} 7. d5 {[%emt 0:00:32]} b5 {[%emt 0:13:51]} 8. cxb5 {[%emt 0:02:07] E73: King's Indian: Averbakh Variation without 6...c5.} a6 $1 {[%emt 0:00:11]} 9. a4 {[%emt 0:03:21]} axb5 {[%emt 0:02:23]} 10. Bxb5 {[%emt 0:00:09] White has an edge.} Ba6 {[%emt 0:00:10]} 11. Bd2 {[%emt 0:01:09]} Qc8 {[%emt 0:03:36] [#]} 12. Ra3 $146 {[%emt 0:05:51] White is more active.} (12. f3 $14) ({Predecessor:} 12. Nh3 Bxb5 13. axb5 Rxa1 14. Qxa1 Nbd7 15. O-O Ne5 16. Qd1 Qb7 17. Qe2 Ra8 18. Rb1 {½-½ (48) Dragnev,V (2550)-Hillarp Persson,T (2550) Batumi 2019}) 12... e6 {[%emt 0:32:02]} 13. Qf3 {[%emt 0:38:42]} exd5 {[%emt 0:04:04]} 14. exd5 {[%emt 0:00:13]} Nbd7 {[%emt 0:01:07][%cal Bb8d7,Bd7b6,Bb6c4][%mdl 32]} 15. Bf4 {[%emt 0:07:46]} Nb6 {[%emt 0:10:05]} 16. Nge2 {[%emt 0:13:19]} Nc4 {[%emt 0:07:45]} 17. Ra2 {[%emt 0:00:54]} Qf5 {[%emt 0:05:42]} 18. O-O {[%emt 0:09:19]} Bxb5 {[%emt 0:00:32]} 19. Nxb5 {[%emt 0:00:04]} Nxd5 {[%emt 0:01:03]} 20. Nxd6 {[%emt 0:03:06]} Nxd6 {[%emt 0:00:07]} 21. Bxd6 {[%emt 0:00:04]} Qxf3 {[%emt 0:00:10]} 22. gxf3 {[%emt 0:00:04]} Rfe8 {[%emt 0:00:16]} 23. b3 {[%emt 0:00:46]} Nb4 {[%emt 0:02:05]} 24. Rd2 {[%emt 0:00:06]} Rad8 {[%emt 0:00:44] [#] aiming for ...Be5.} 25. Ng3 {[%emt 0:00:22]} Nc6 {[%emt 0:02:08]} 26. Rdd1 {[%emt 0:00:29]} Nd4 {[%emt 0:02:06]} 27. Bxc5 {[%emt 0:00:56]} Nxb3 {[%emt 0:00:13]} (27... Nxf3+ {looks sharper.} 28. Kg2 Nd2 29. Bb6 Rb8) 28. Rxd8 {[%emt 0:04:17]} Rxd8 {[%emt 0:00:01]} 29. Be3 {[%emt 0:00:16]} Nd4 {[%emt 0:01:01]} 30. Kg2 {[%emt 0:01:10]} Ra8 {[%emt 0:00:31]} 31. Rc1 {[%emt 0:00:24]} h5 {[%emt 0:00:35]} (31... Rxa4 $14 32. Rc8+ Bf8) 32. Rc4 $16 {[%emt 0:00:24] Black is on the road to losing.} Ne6 {[%emt 0:00:18]} 33. Ne4 {[%emt 0:02:07] Prevents Bf6.} Be5 {[%emt 0:00:05]} 34. f4 {[%emt 0:02:11]} Bxf4 {[%emt 0:01:11]} 35. Nf6+ {[%emt 0:00:07]} Kg7 {[%emt 0:00:01] [#] ...Bxe3 is the strong threat.} 36. Nxh5+ $1 {[%emt 0:00:08]} gxh5 {[%emt 0:00:03]} 37. Bxf4 {[%emt 0:00:06][%mdl 4096] Endgame KRB-KRN} Rd8 {[%emt 0:01:30] Inhibits Bd2.} (37... Nxf4+ $16 {is a better defense.} 38. Rxf4 Ra5) 38. Be5+ $18 {[%emt 0:00:44]} Kg6 {[%emt 0:00:01]} 39. a5 {[%emt 0:00:18][%cal Ba4a5,Ba5a6,Ba6a7][%mdl 32]} Kf5 {[%emt 0:00:59]} 40. Bc3 {[%emt 0:00:00]} Rd3 $2 {[%emt 0:00:00]} (40... Nf4+ {was necessary.} 41. Kh2 Nd5) 41. a6 {[%emt 0:05:39]} Nf4+ {[%emt 0:02:31]} 42. Kh2 {[%emt 0:00:10]} Rh3+ {[%emt 0:04:04]} 43. Kg1 {[%emt 0:00:04] Hoping for a7.} Rxh4 {[%emt 0:00:22]} 44. Rc5+ {[%emt 0:01:36]} Ke6 {[%emt 0:04:47]} 45. a7 {[%emt 0:01:58]} Rg4+ {[%emt 0:00:07]} 46. Kf1 {[%emt 0:00:44]} Rg8 {[%emt 0:00:11]} 47. Be5 {[%emt 0:00:18] Strongly threatening Bb8.} Nh3 $2 {[%emt 0:00:43]} (47... Ra8) 48. Rb5 {[%emt 0:04:58] Threatens to win with Rb8.} Ra8 {[%emt 0:01:54]} 49. Bd4 {[%emt 0:08:30] Weighted Error Value: White=0.09 (flawless) /Black=0.23 (precise)} 1-0

[Event "2nd Serbia Open Masters 2022"]
[Site "Novi Sad"]
[Date "2022.07.02"]
[Round "5.4"]
[White "Arnaudov, G. Petar"]
[Black "Motylev, Alexander"]
[Result "0-1"]
[ECO "E06"]
[WhiteElo "2467"]
[BlackElo "2633"]
[Annotator "TA"]
[PlyCount "62"]
[EventDate "2022.06.28"]
[EventType "swiss"]
[EventCountry "SRB"]
[SourceTitle "playchess.com"]
[Source "ChessBase"]
[SourceQuality "1"]
[TimeControl "40/5400+30:900+30"]

{[%evp 12,62,18,13,24,23,39,0,0,0,43,36,32,29,39,25,23,0,10,-17,-9,0,29,39,40,27,32,27,46,0,0,-89,-79,-93,-93,-93,-93,-127,-133,-135,-121,-101,-108,-166,-116,-141,-116,-261,-270,-395,-379,-595,-590]} 1. d4 {[%emt 0:00:04]} d5 {[%emt 0:00:28]} 2. c4 {[%emt 0:00:12]} e6 {[%emt 0:00:06]} 3. Nf3 {[%emt 0:00:14]} Nf6 {[%emt 0:00:12]} 4. g3 {[%emt 0:00:22]} Be7 {[%emt 0:00:11]} 5. Bg2 {[%emt 0:00:15]} O-O {[%emt 0:00:08]} 6. O-O {[%emt 0:01:03]} c6 {[%emt 0:00:15]} 7. Nc3 {[%emt 0:01:40][%cal Bb1c3,Bc3a4,Ba4b2,Bb2d3][%mdl 32]} a5 {[%emt 0:00:57] E06: Closed Catalan: Early deviations.} 8. b3 {[%emt 0:01:49]} b6 {[%emt 0:00:55]} 9. Qc2 {[%emt 0:03:38]} Ba6 {[%emt 0:01:12] The position is equal.} 10. Rd1 {[%emt 0:05:34]} b5 {[%emt 0:03:12]} 11. c5 {[%emt 0:06:42]} (11. Ne5 {feels hotter.} bxc4 12. bxc4 Nfd7 13. Nxd7 Nxd7 14. c5) 11... b4 {[%emt 0:01:40]} 12. Na4 {[%emt 0:00:05]} Nbd7 {[%emt 0:00:06] [#]} 13. Bf4 $146 {[%emt 0:04:32]} ({Predecessor:} 13. a3 Bb5 14. axb4 axb4 15. Bb2 Qb8 16. Ne1 Bd8 17. Nd3 Bc7 18. Qd2 Ba5 19. Ra2 {½-½ (40) Csom,I (2460)-Murugan,K (2430) Wrexham 1996}) 13... Bb5 {[%emt 0:03:43]} 14. Nb2 {[%emt 0:06:33]} Ne4 {[%emt 0:15:58]} 15. Nd3 {[%emt 0:00:57]} g5 {[%emt 0:03:25]} 16. Bc1 {[%emt 0:01:29]} f6 {[%emt 0:12:34][%cal Bf7f6,Bf6f5,Bf5e4][%mdl 32]} 17. Bb2 {[%emt 0:01:52]} Qe8 {[%emt 0:08:55]} 18. a3 {[%emt 0:03:04]} bxa3 {[%emt 0:01:20]} 19. Rxa3 {[%emt 0:00:07]} Bd8 {[%emt 0:00:16]} 20. Nd2 {[%emt 0:06:00]} (20. Nfe1 $14) 20... f5 $11 {[%emt 0:00:26]} 21. Nxe4 {[%emt 0:16:23]} (21. Nf3 $11 {keeps the balance.}) 21... fxe4 $17 {[%emt 0:02:24]} 22. Ne5 {[%emt 0:02:17]} Nxe5 {[%emt 0:00:54]} 23. dxe5 {[%emt 0:00:05]} Qh5 {[%emt 0:00:32]} 24. Re1 {[%emt 0:02:43] [#]} ({Not} 24. f3 $2 Bxe2 $1 {[%mdl 512]} 25. Qxe2 exf3 $17) 24... g4 $1 {[%emt 0:05:40] Prevents f3. Black is more active.} 25. Bd4 {[%emt 0:00:48]} Ra7 {[%emt 0:02:06]} 26. b4 {[%emt 0:01:10]} a4 {[%emt 0:01:24]} 27. Rea1 {[%emt 0:01:33] [#]} (27. Ra2 $17 {keeps fighting.}) 27... Bc7 {[%emt 0:19:51]} (27... Raf7 $1 $19 28. Rxa4 Bxa4 29. Rxa4 Bc7) 28. Qb2 {[%emt 0:00:17]} Rf5 {[%emt 0:00:36][%cal Rc7e5]} 29. Re3 {[%emt 0:00:07]} (29. e3 $17) 29... Bb8 $19 {[%emt 0:02:24]} ({Stronger than} 29... Bxe5 30. Bxe5 Rxe5 31. f3 $17) 30. Raa3 {[%emt 0:02:10]} (30. h4 $142) 30... Raf7 {[%emt 0:00:46]} 31. Rec3 {[%emt 0:02:49]} (31. Qa1 {was necessary.}) 31... Bxe5 {[%emt 0:01:10] Weighted Error Value: White=0.38/Black=0.07 (flawless)} 0-1

[Event "2nd Serbia Open Masters 2022"]
[Site "Novi Sad"]
[Date "2022.07.02"]
[Round "5.5"]
[White "Aryan Chopra"]
[Black "Narva, Mai"]
[Result "1-0"]
[ECO "B41"]
[WhiteElo "2609"]
[BlackElo "2385"]
[Annotator "TA"]
[PlyCount "49"]
[EventDate "2022.06.28"]
[EventType "swiss"]
[EventCountry "SRB"]
[SourceTitle "playchess.com"]
[Source "ChessBase"]
[SourceQuality "1"]
[TimeControl "40/5400+30:900+30"]

{[%evp 14,49,48,49,45,50,48,44,52,54,63,49,68,33,83,94,93,72,85,75,89,84,167,161,250,224,272,272,370,375,799,793,939,927,1230,1217,1230,1193]} 1. e4 {[%emt 0:00:03]} c5 {[%emt 0:03:02]} 2. Nf3 {[%emt 0:00:06]} e6 {[%emt 0:00:14]} 3. d4 {[%emt 0:00:07]} cxd4 {[%emt 0:00:12]} 4. Nxd4 {[%emt 0:00:05]} a6 {[%emt 0:00:16]} 5. c4 {[%emt 0:00:25]} Nf6 {[%emt 0:00:18]} 6. Nc3 {[%emt 0:00:06]} Qc7 {[%emt 0:00:26]} 7. a3 {[%emt 0:00:21]} b6 {[%emt 0:00:25]} 8. Be3 {[%emt 0:00:19]} Bb7 {[%emt 0:00:34] B41: Sicilian: Kan Variation: 5 c4.} 9. f3 {[%emt 0:00:22]} Be7 {[%emt 0:01:00]} 10. Rc1 {[%emt 0:00:40]} O-O {[%emt 0:06:32] White is slightly better.} 11. Be2 {[%emt 0:00:12]} d6 {[%emt 0:00:30]} 12. Qd2 {[%emt 0:00:26]} Nbd7 {[%emt 0:05:24]} 13. g4 $5 {[%emt 0:00:42][%cal Bg2g4,Bg4g5][%mdl 4] [#] A promising side line.} Rfc8 $146 {[%emt 0:08:18]} (13... Qd8 $14) ({Predecessor:} 13... Ne5 14. g5 Nfd7 15. O-O Rfe8 16. f4 Ng6 17. f5 exf5 18. exf5 Nge5 19. Nd5 Qd8 {1-0 (60) Sargsyan,S (2598)-Kamer,K (2339) Belgrade 2021}) 14. g5 $16 {[%emt 0:01:06]} Ne8 {[%emt 0:00:47]} 15. O-O {[%emt 0:08:35]} Qd8 {[%emt 0:05:00]} 16. Rcd1 {[%emt 0:05:01] 0x0.001b69cc42ebdp-1022s more active pieces. The black rooks are badly placed.} Ne5 {[%emt 0:12:39]} 17. b3 {[%emt 0:00:26]} g6 {[%emt 0:01:37]} (17... Nd7 $16 {was called for.}) 18. f4 $18 {[%emt 0:02:33][%cal Bf3f4,Bf4f5,Bf5g6,Bg6f7][%mdl 32]} Nc6 {[%emt 0:01:24] [#]} (18... Nd7 {was necessary.} 19. f5 e5) 19. Nxc6 $1 {[%emt 0:02:28]} Bxc6 {[%emt 0:00:53]} 20. f5 {[%emt 0:00:09]} Qc7 {[%emt 0:08:07]} 21. Bg4 {[%emt 0:03:36]} Bd7 {[%emt 0:08:59]} (21... gxf5 22. exf5 exf5) 22. Qf2 {[%emt 0:03:59] White is clearly winning.} Kh8 {[%emt 0:02:29]} 23. fxg6 {[%emt 0:01:59]} Ng7 {[%emt 0:01:30]} 24. gxf7 {[%emt 0:02:12]} Rf8 {[%emt 0:00:38]} 25. Qh4 {[%emt 0:00:30] Weighted Error Value: White=0.05 (flawless) /Black=0.35} 1-0

[Event "2nd Serbia Open Masters 2022"]
[Site "Novi Sad"]
[Date "2022.07.02"]
[Round "5.7"]
[White "Predke, Alexandr"]
[Black "Kushagra Mohan"]
[Result "1/2-1/2"]
[ECO "B10"]
[WhiteElo "2688"]
[BlackElo "2343"]
[Annotator "TA"]
[PlyCount "88"]
[EventDate "2022.06.28"]
[EventType "swiss"]
[EventCountry "SRB"]
[SourceTitle "playchess.com"]
[Source "ChessBase"]
[SourceQuality "1"]
[TimeControl "40/5400+30:900+30"]

{[%evp 9,88,0,2,5,12,5,24,21,52,38,31,32,29,0,30,36,62,27,48,22,91,57,81,62,143,110,115,118,120,100,192,181,186,186,182,187,178,175,206,206,179,107,100,87,91,93,77,63,64,55,123,119,160,149,208,208,222,164,152,144,111,90,143,88,204,199,191,78,73,12,119,0,0,0,0,0,0,0,0,0,29988]} 1. e4 {[%emt 0:00:03]} c6 {[%emt 0:05:09]} 2. Nf3 {[%emt 0:03:21]} d5 {[%emt 0:00:10]} 3. d3 {[%emt 0:00:24]} dxe4 {[%emt 0:01:05]} 4. dxe4 {[%emt 0:00:04]} Qxd1+ {[%emt 0:00:05]} 5. Kxd1 {[%emt 0:00:03]} Nf6 {[%emt 0:00:08]} 6. Nbd2 {[%emt 0:00:26] B10: Caro-Kann: 2 d3 and 2 c4.} Nbd7 {[%emt 0:02:13]} 7. Ne1 {[%emt 0:01:05]} Nc5 {[%emt 0:03:24]} 8. f3 {[%emt 0:00:36] [#] White has an edge.} g5 $146 {[%emt 0:02:45]} ({Predecessor:} 8... g6 9. a4 Bg7 10. c3 Be6 11. Kc2 Bh6 12. b4 Bxd2 13. Bxd2 Nb3 14. Rb1 Nxd2 15. Kxd2 {½-½ (30) Papp,G (2599)-Dreev,A (2637) Struga 2021}) 9. a4 {[%emt 0:08:51]} g4 {[%emt 0:05:33]} 10. b4 {[%emt 0:01:36]} Ne6 {[%emt 0:00:13]} 11. c3 {[%emt 0:00:03]} gxf3 {[%emt 0:11:50]} 12. gxf3 {[%emt 0:00:10]} Nh5 {[%emt 0:02:37]} 13. a5 {[%emt 0:03:37]} Bd7 {[%emt 0:03:07]} 14. Kc2 {[%emt 0:05:09]} Nhf4 {[%emt 0:04:42]} (14... Bh6 $11) 15. Rg1 {[%emt 0:05:19]} O-O-O {[%emt 0:09:07]} 16. Nc4 {[%emt 0:09:50][%cal Bd2c4,Bc4e5,Be5g4][%mdl 32]} Bh6 {[%emt 0:04:21]} (16... h5 $14) 17. Ne5 {[%emt 0:14:37]} Be8 {[%emt 0:03:43]} 18. Bc4 $1 {[%emt 0:00:05]} Rd6 {[%emt 0:12:11]} 19. Ng2 {[%emt 0:21:08]} f6 {[%emt 0:12:12]} (19... Nxg2 $16 20. Bxh6 Nef4) 20. Ng4 $1 $18 {[%emt 0:07:06]} Nxg2 {[%emt 0:02:09]} 21. Nxh6 {[%emt 0:02:49]} Nh4 {[%emt 0:04:10]} 22. Rg4 {[%emt 0:03:31]} Nxf3 {[%emt 0:00:42]} 23. Nf5 $1 {[%emt 0:00:03][%csl LRd6,LRe7]} Kd7 {[%emt 0:01:04]} 24. Nxd6 {[%emt 0:00:30]} exd6 {[%emt 0:00:29]} 25. Bxe6+ {[%emt 0:03:02]} (25. a6 $18) 25... Kxe6 $16 {[%emt 0:00:01]} 26. Rg7 {[%emt 0:00:06]} Bg6 {[%emt 0:00:23]} 27. Bf4 {[%emt 0:00:45]} Bxe4+ {[%emt 0:01:06]} 28. Kb3 {[%emt 0:00:30]} Kf5 {[%emt 0:03:46]} 29. Bg3 {[%emt 0:00:09]} c5 {[%emt 0:02:41]} (29... Nd2+ $14 30. Kb2 Nc4+ 31. Ka2 c5) 30. Rd1 $36 {[%emt 0:01:38][%mdl 2048] Keeping Black busy.} h5 {[%emt 0:01:03]} 31. b5 {[%emt 0:02:36]} (31. Rxd6 h4 32. a6 (32. Bf2 Nxh2 33. bxc5 a6 $15) 32... bxa6 33. Rxa7 (33. Bf2 Nxh2 34. Rxa6 Nf3 $15) 33... hxg3 34. hxg3 Ne5 35. Raxa6 Bd3 36. Rxf6+ Kg5 $11) 31... h4 {[%emt 0:01:19]} (31... a6 $16 {is a better defense.} 32. bxa6 (32. Rxd6 h4 $11) (32. Bxd6 axb5 33. Kb2 Rd8 $14) 32... bxa6) 32. Bxd6 $18 {[%emt 0:00:03]} Rd8 {[%emt 0:00:03]} 33. a6 {[%emt 0:00:07]} bxa6 {[%emt 0:03:29]} 34. bxa6 {[%emt 0:00:03] And now h3 would win.} Nxh2 {[%emt 0:00:00]} 35. Rxa7 {[%emt 0:00:04] Strongly threatening Rh7. White is more active.} Nf3 {[%emt 0:00:00]} ({Better is} 35... Ng4) 36. Re7 {[%emt 0:01:28]} (36. Rh7 $142) 36... h3 $16 {[%emt 0:00:00]} 37. a7 $1 {[%emt 0:00:23]} Ba8 {[%emt 0:00:24] [#]} 38. Kc2 {[%emt 0:02:38]} (38. Kc4 $1 $18 {has better winning chances.}) 38... Rh8 {[%emt 0:01:02]} 39. Re2 {[%emt 0:04:30]} ({Don't play} 39. Bxc5 h2 $11) ({White should try} 39. Kc1 $16) 39... Rh7 {[%emt 0:00:26] [#]} (39... h2 $11 {remains equal.}) 40. Bxc5 {[%emt 0:00:00]} (40. Ra1 $1 $16) 40... h2 $11 {[%emt 0:00:00] The position is equal.} 41. Re8 {[%emt 0:05:05]} Bc6 {[%emt 0:01:10]} 42. a8=Q {[%emt 0:01:39]} Bxa8 {[%emt 0:00:07]} 43. Rxa8 {[%emt 0:00:02] Rh1 is the strong threat.} h1=Q {[%emt 0:00:12]} 44. Rxh1 {[%emt 0:00:04]} Ke5 $2 {[%emt 0:00:42][%mdl 40960] Weighted Error Value: White=0.18 (very precise) /Black=0.24 (precise) . An unexpected result.} 1/2-1/2

[Event "2nd Serbia Open Masters 2022"]
[Site "Novi Sad"]
[Date "2022.07.02"]
[Round "5.8"]
[White "Samadov, Read"]
[Black "Sarana, Alexey"]
[Result "1/2-1/2"]
[ECO "E04"]
[WhiteElo "2442"]
[BlackElo "2675"]
[Annotator "TA"]
[PlyCount "43"]
[EventDate "2022.06.28"]
[EventType "swiss"]
[EventCountry "SRB"]
[SourceTitle "playchess.com"]
[Source "ChessBase"]
[SourceQuality "1"]
[TimeControl "40/5400+30:900+30"]

{[%evp 14,43,0,0,0,0,0,0,0,0,0,0,10,-26,-6,-8,0,-34,24,8,8,7,17,12,37,7,8,0,14,20,74,52]} 1. d4 {[%emt 0:00:03]} Nf6 {[%emt 0:02:36]} 2. c4 {[%emt 0:00:10]} e6 {[%emt 0:00:06]} 3. Nf3 {[%emt 0:00:11]} d5 {[%emt 0:00:06]} 4. g3 {[%emt 0:00:20]} dxc4 {[%emt 0:00:05]} 5. Bg2 {[%emt 0:00:20]} Nc6 {[%emt 0:00:06]} 6. O-O {[%emt 0:00:47]} Rb8 {[%emt 0:00:24]} 7. Nc3 {[%emt 0:01:04]} b5 {[%emt 0:00:45]} 8. Ne5 {[%emt 0:00:49]} Nxe5 {[%emt 0:00:06] E04: Open Catalan: 5 Nf3.} (8... Nxd4 $2 9. e3 $18) 9. dxe5 {[%emt 0:00:05]} Nd7 {[%emt 0:00:06]} 10. Qc2 {[%emt 0:02:32]} Bb7 {[%emt 0:00:07] Against Bc6. The position is equal.} 11. Bxb7 {[%emt 0:00:44]} Rxb7 {[%emt 0:00:03]} 12. Rd1 {[%emt 0:00:27]} Qc8 {[%emt 0:00:03]} 13. Bg5 {[%emt 0:03:11][%cal Od1d7] [#] aiming for Rxd7!} c6 {[%emt 0:01:11]} (13... h6 $5 {[%cal Rh6g5]} 14. Rxd7 hxg5 $11) 14. Ne4 {[%emt 0:10:00]} h6 {[%emt 0:00:19]} 15. Be3 {[%emt 0:07:18] [#]} Nb6 $146 {[%emt 0:10:24]} (15... Be7 $15) ({Predecessor:} 15... Be7 16. Nd6+ Bxd6 17. Rxd6 O-O 18. f4 Nb6 19. Rad1 c5 20. f5 exf5 21. Rf1 Rd7 22. Qxf5 Rxd6 23. exd6 Qxf5 24. Rxf5 {½-½ (74) Ju,W (2528)-Maisuradze,N (2284) Istanbul 2012}) 16. Bxb6 {[%emt 0:16:10]} axb6 {[%emt 0:01:41]} 17. b3 {[%emt 0:03:53]} Be7 {[%emt 0:04:15]} 18. bxc4 {[%emt 0:01:54]} O-O {[%emt 0:00:15]} 19. Nd6 {[%emt 0:05:56]} Bxd6 {[%emt 0:00:03]} 20. Rxd6 {[%emt 0:01:43]} b4 {[%emt 0:01:36]} 21. Qa4 {[%emt 0:04:44][%csl LRb4,LRc6]} Qa8 {[%emt 0:13:57]} (21... c5 $11) 22. Qxb4 {[%emt 0:07:18] Weighted Error Value: White=0.06 (flawless) /Black=0.20 (precise)} 1/2-1/2